[Event "Leca Open 2022"]
[Site "Leca da Palmeira"]
[Date "2022.08.01"]
[Round "3.2"]
[White "Perez Candelario, Manuel"]
[Black "Garcia Dorado, Alberto"]
[Result "1/2-1/2"]
[ECO "C10"]
[WhiteElo "2578"]
[BlackElo "2206"]
[Annotator "TA"]
[PlyCount "152"]
[EventDate "2022.08.02"]
[EventType "swiss"]
[EventCountry "POR"]
[SourceTitle "playchess.com"]
[Source "ChessBase"]
[SourceQuality "1"]
[TimeControl "5400+30"]

{[%evp 13,152,30,42,22,31,29,29,16,26,28,30,33,25,16,14,14,16,7,11,6,14,0,0,3,26,26,28,26,28,25,26,7,26,26,26,26,26,27,27,26,26,26,26,26,28,20,27,27,38,27,42,28,28,28,39,39,39,40,40,28,28,28,28,7,24,4,18,0,102,0,0,0,0,0,0,0,0,0,0,0,0,0,0,0,0,0,0,0,0,0,0,0,0,0,0,0,0,0,0,0,8,8,8,8,8,8,8,8,8,8,8,8,8,0,8,8,8,8,8,8,8,0,8,0,0,0,0,0,0,0,0,0,0,0,0,0,0,0,8,8,8]} 1. e4 {[%emt 0:00:02]} e6 {[%emt 0:13:28]} 2. d4 {[%emt 0:00:05]} d5 {[%emt 0:00:09]} 3. Nc3 {[%emt 0:00:04]} dxe4 {[%emt 0:00:09]} 4. Nxe4 {[%emt 0:00:06]} Nd7 {[%emt 0:00:19]} 5. Nf3 {[%emt 0:00:11]} Ngf6 {[%emt 0:00:06]} 6. Nxf6+ {[%emt 0:00:16]} Nxf6 {[%emt 0:00:15]} 7. c3 {[%emt 0:00:30]} c5 {[%emt 0:01:40]} 8. Be3 $1 {[%emt 0:00:30][%mdl 4] is more profitable than 8.Ne5 at the moment. C10: French with 3 Nc3: Unusual Black 3rd moves and 3...dxe4.} Qc7 {[%emt 0:01:45]} 9. Bb5+ {[%emt 0:00:18]} (9. Ne5 {feels hotter.} a6 10. Qa4+ Bd7 11. Nxd7 Nxd7 12. g3) 9... Bd7 {[%emt 0:03:36]} 10. Bxd7+ {[%emt 0:00:05] White has an edge.} (10. Qa4 {keeps more tension.} Be7 11. Ne5 Bxb5 12. Qxb5+ Kf8 13. Rd1) 10... Nxd7 {[%emt 0:02:35]} 11. d5 {[%emt 0:00:04]} (11. Qa4 {looks sharper.} Be7 12. Ne5 Rd8 13. O-O) 11... exd5 {[%emt 0:21:34]} 12. Qxd5 {[%emt 0:00:11]} Nf6 {[%emt 0:00:33] [#]} 13. Qe5+ $146 {[%emt 0:08:32]} ({Predecessor:} 13. Qc4 Bd6 14. Bg5 Qe7+ 15. Kf1 O-O 16. Re1 Qd8 17. g3 h6 18. Bxf6 Qxf6 19. Kg2 {1-0 (47) Duda,J (2734)-Meier,G (2628) chess24.com INT 2020}) 13... Qxe5 {[%emt 0:00:25]} 14. Nxe5 {[%emt 0:00:03]} Nd5 {[%emt 0:06:53]} 15. Bd2 {[%emt 0:04:38]} f6 {[%emt 0:02:38]} 16. Nc4 {[%emt 0:00:05]} O-O-O {[%emt 0:02:24]} 17. a4 {[%emt 0:02:39]} Bd6 {[%emt 0:00:46]} 18. O-O-O {[%emt 0:03:49]} Nb6 {[%emt 0:05:15]} 19. Nxb6+ {[%emt 0:03:45]} axb6 {[%emt 0:00:03]} 20. Kc2 {[%emt 0:00:46]} Kc7 {[%emt 0:00:11]} 21. Rhe1 {[%emt 0:08:33]} Rhe8 {[%emt 0:00:42]} 22. h3 {[%emt 0:06:20]} Kc6 {[%emt 0:01:43]} 23. c4 {[%emt 0:00:33]} Rxe1 {[%emt 0:02:39]} 24. Rxe1 $11 {[%emt 0:01:01][%mdl 4096] Endgame KRB-KRB} Ra8 {[%emt 0:00:44]} 25. b3 {[%emt 0:00:33]} f5 {[%emt 0:03:58]} 26. h4 {[%emt 0:08:18]} Kd7 {[%emt 0:01:04]} 27. Re3 {[%emt 0:06:30]} Re8 {[%emt 0:04:30]} 28. Rf3 {[%emt 0:03:30]} Rf8 {[%emt 0:03:57]} 29. h5 {[%emt 0:00:58]} Be5 {[%emt 0:03:30]} 30. Rd3+ {[%emt 0:02:32]} Kc6 {[%emt 0:00:22]} 31. Rd5 {[%emt 0:02:06]} Bd6 {[%emt 0:02:18]} 32. b4 {[%emt 0:01:06] Hoping for b5+.} g6 {[%emt 0:01:56]} 33. b5+ {[%emt 0:01:55]} Kc7 {[%emt 0:00:10]} 34. a5 {[%emt 0:07:51]} bxa5 $1 {[%emt 0:01:48]} 35. Bxa5+ {[%emt 0:00:04]} Kd7 {[%emt 0:00:06]} 36. hxg6 {[%emt 0:00:42]} hxg6 {[%emt 0:00:06]} 37. Bb6 {[%emt 0:00:53]} Rc8 {[%emt 0:00:28]} 38. Rd1 {[%emt 0:03:17]} g5 {[%emt 0:06:15]} 39. f3 {[%emt 0:04:46]} (39. Rd5 $5 {[%cal Rd5f5]}) 39... Ke6 {[%emt 0:01:40]} 40. Rd5 {[%emt 0:04:01]} Be7 {[%emt 0:03:29]} (40... Rh8 $11) 41. g4 {[%emt 0:00:24]} (41. Kd3 $16) 41... fxg4 $1 {[%emt 0:00:04] The position is equal.} 42. fxg4 {[%emt 0:00:03] Threatens to win with Kd3.} Rf8 {[%emt 0:00:17]} 43. Bc7 {[%emt 0:02:17]} ({Not} 43. Bxc5 $2 Rc8 44. Bxe7 Rxc4+ 45. Kb3 Kxd5 46. Bxg5 Rxg4 $19) 43... Rf2+ {[%emt 0:00:37]} 44. Rd2 {[%emt 0:00:41]} Rf1 {[%emt 0:00:37]} 45. Re2+ {[%emt 0:01:26]} Kd7 {[%emt 0:00:01]} 46. Be5 {[%emt 0:01:45]} Rg1 {[%emt 0:00:34]} 47. Re4 {[%emt 0:00:15]} Bd6 {[%emt 0:00:59]} 48. Kb3 {[%emt 0:03:44]} b6 {[%emt 0:00:33]} 49. Bf6 {[%emt 0:00:44]} Bf4 {[%emt 0:00:08]} 50. Re7+ {[%emt 0:00:15]} Kc8 {[%emt 0:00:39]} 51. Re6 {[%emt 0:00:30]} Kc7 {[%emt 0:00:55]} 52. Rc6+ {[%emt 0:01:15]} Kb7 {[%emt 0:00:12]} 53. Bd8 {[%emt 0:00:08]} Rb1+ {[%emt 0:01:42]} 54. Ka2 {[%emt 0:03:02]} Rb4 {[%emt 0:00:31]} 55. Rxb6+ {[%emt 0:00:54]} Kc8 {[%emt 0:00:15]} 56. Be7 {[%emt 0:00:10]} Rxc4 {[%emt 0:00:18]} 57. Rc6+ {[%emt 0:00:17]} Kb7 {[%emt 0:00:07]} 58. Rxc5 {[%emt 0:00:17]} Re4 {[%emt 0:01:40]} 59. Bxg5 {[%emt 0:03:49]} Bc7 {[%emt 0:00:19]} 60. Kb3 {[%emt 0:00:56] And now Rc4 would win.} Rxg4 {[%emt 0:00:07]} 61. Bd2 {[%emt 0:00:35]} Rg3+ {[%emt 0:00:35]} 62. Kc4 {[%emt 0:00:41][%cal Oc5c7] [#] Threatening mate with Rxc7+!} Rg4+ {[%emt 0:00:30]} 63. Kb3 {[%emt 0:00:23]} Rg3+ {[%emt 0:00:05]} 64. Kc2 {[%emt 0:00:04]} Rh3 {[%emt 0:00:27]} 65. Rd5 {[%emt 0:01:17]} Rh8 {[%emt 0:00:58]} 66. Be3 {[%emt 0:01:02]} Re8 {[%emt 0:00:26]} 67. Rd3 {[%emt 0:00:58]} Rd8 {[%emt 0:00:19]} 68. Ra3 {[%emt 0:00:41]} Bb6 {[%emt 0:00:06]} 69. Bd2 {[%emt 0:00:36]} Rd5 {[%emt 0:00:09]} 70. Rb3 {[%emt 0:00:03]} Bc5 {[%emt 0:00:28]} 71. Ba5 {[%emt 0:00:59]} Bb6 {[%emt 0:00:05]} 72. Be1 {[%emt 0:01:12]} Bc5 {[%emt 0:00:11]} 73. Rb1 {[%emt 0:00:41]} Kb6 {[%emt 0:01:05]} 74. Kc3 {[%emt 0:00:06]} Be3 {[%emt 0:00:29]} 75. Kc4 {[%emt 0:00:28]} Rc5+ {[%emt 0:00:04]} 76. Kd3 {[%emt 0:00:11]} Rxb5 {[%emt 0:00:04] Weighted Error Value: White=0.06 (flawless) /Black=0.06 (flawless)} 1/2-1/2

[Event "Leca Open 2022"]
[Site "Leca da Palmeira"]
[Date "2022.08.01"]
[Round "3.3"]
[White "Spraggett, Kevin"]
[Black "Borges, Guilherme Deola"]
[Result "1-0"]
[ECO "B44"]
[WhiteElo "2487"]
[BlackElo "2185"]
[Annotator "RC"]
[PlyCount "47"]
[EventDate "2022.08.02"]
[EventType "swiss"]
[EventCountry "POR"]
[SourceTitle "playchess.com"]
[Source "ChessBase"]
[SourceQuality "1"]
[TimeControl "5400+30"]

1. e4 {[%emt 0:00:02]} c5 {[%emt 0:05:51]} 2. Nf3 {[%emt 0:00:12]} e6 {[%emt 0:00:23]} 3. d4 {[%emt 0:00:10]} cxd4 {[%emt 0:00:07]} 4. Nxd4 {[%emt 0:00:06]} Nc6 {[%emt 0:00:08]} 5. Nb5 {[%emt 0:00:53]} d6 {[%emt 0:00:26]} 6. c4 {[%emt 0:00:07]} Nf6 {[%emt 0:00:27]} 7. N5c3 {[%emt 0:00:08]} Be7 {[%emt 0:02:14]} 8. Be2 {[%emt 0:00:58]} b6 {[%emt 0:00:28]} 9. O-O {[%emt 0:01:02]} Bb7 {[%emt 0:00:28]} 10. Bf4 {[%emt 0:00:37]} O-O {[%emt 0:00:14]} 11. Re1 {[%emt 0:03:23]} Ne5 {[%emt 0:01:18]} 12. Nd2 {[%emt 0:03:25]} h6 {[%emt 0:00:25]} 13. Rc1 {[%emt 0:00:44]} g5 {[%emt 0:01:43]} 14. Bg3 {[%emt 0:03:33]} Rc8 {[%emt 0:00:55]} 15. a3 {[%emt 0:00:21]} Qc7 {[%emt 0:04:54]} 16. b4 {[%emt 0:04:00]} Qb8 {[%emt 0:01:47]} 17. h3 {[%emt 0:04:16]} Qa8 {[%emt 0:04:46]} 18. Bf1 {[%emt 0:01:09]} Kh7 {[%emt 0:08:58]} 19. Nf3 {[%emt 0:10:23]} Nxf3+ {[%emt 0:16:54]} 20. Qxf3 {[%emt 0:00:48]} Nd7 {[%emt 0:10:16]} 21. Nd5 {[%emt 0:05:50]} Ne5 {[%emt 0:17:34]} 22. Bxe5 {[%emt 0:00:59]} exd5 {[%emt 0:00:06]} 23. Qf5+ {[%emt 0:00:47]} Kg8 {[%emt 0:00:07]} 24. exd5 {[%emt 0:00:20]} 1-0

[Event "Leca Open 2022"]
[Site "Leca da Palmeira"]
[Date "2022.08.01"]
[Round "3.4"]
[White "Pena Duarte, Fabian Dario"]
[Black "Das, Sayantan"]
[Result "0-1"]
[ECO "A04"]
[WhiteElo "2224"]
[BlackElo "2449"]
[Annotator "RC"]
[PlyCount "66"]
[EventDate "2022.08.02"]
[EventType "swiss"]
[EventCountry "POR"]
[SourceTitle "playchess.com"]
[Source "ChessBase"]
[SourceQuality "1"]
[TimeControl "5400+30"]

1. Nf3 c5 2. b3 g6 3. Bb2 Nf6 4. Nc3 d5 5. e3 Bg7 6. Be2 O-O 7. O-O Ne4 8. Na4 Bxb2 9. Nxb2 Nc6 10. c4 d4 11. Qb1 f5 12. Bd3 Nf6 13. exd4 Nxd4 14. Ne5 Qd6 15. f4 Ne6 16. g3 b6 17. Nd1 Bb7 18. Nc3 Nd4 19. Qe1 Nd7 20. Nxd7 Qxd7 21. Qe3 Qc6 22. Nd5 Rae8 23. Qxe7 Rf7 24. Qg5 Kg7 25. g4 Ne6 26. Qh4 Nc7 27. Qg3 Nxd5 28. cxd5 Qxd5 29. Bc4 Qd4+ 30. Qf2 Qe4 31. Qg3 Rd7 32. d3 Qc6 33. d4 Re3 0-1

[Event "Leca Open 2022"]
[Site "Leca da Palmeira"]
[Date "2022.08.01"]
[Round "3.5"]
[White "Stella, Andrea"]
[Black "Chua, Chee Sian Sebastien"]
[Result "1-0"]
[ECO "B51"]
[WhiteElo "2443"]
[BlackElo "2123"]
[Annotator "RC"]
[PlyCount "79"]
[EventDate "2022.08.02"]
[EventType "swiss"]
[EventCountry "POR"]
[SourceTitle "playchess.com"]
[Source "ChessBase"]
[SourceQuality "1"]
[TimeControl "5400+30"]

1. e4 c5 {[%emt 0:02:05]} 2. Nf3 {[%emt 0:00:38]} d6 {[%emt 0:00:04]} 3. Bb5+ {[%emt 0:00:04]} Nd7 {[%emt 0:00:09]} 4. c4 {[%emt 0:00:04]} a6 {[%emt 0:00:27]} 5. Ba4 {[%emt 0:00:23]} Ngf6 {[%emt 0:00:47]} 6. Nc3 {[%emt 0:00:04]} e6 {[%emt 0:00:29]} 7. O-O {[%emt 0:00:06]} Be7 {[%emt 0:00:08]} 8. d4 {[%emt 0:00:21]} cxd4 {[%emt 0:00:19]} 9. Nxd4 {[%emt 0:00:03]} O-O {[%emt 0:00:17]} 10. Qe2 {[%emt 0:00:45]} Qc7 {[%emt 0:02:22]} 11. Kh1 {[%emt 0:00:04]} Ne5 {[%emt 0:05:35]} 12. Bb3 {[%emt 0:00:36]} Bd7 {[%emt 0:01:23]} 13. f4 {[%emt 0:00:18]} Nc6 {[%emt 0:02:47]} 14. Be3 {[%emt 0:02:05]} Rac8 {[%emt 0:01:53]} 15. Nxc6 {[%emt 0:17:46]} Bxc6 {[%emt 0:06:11]} 16. Bd4 {[%emt 0:03:38]} e5 {[%emt 0:23:17]} 17. fxe5 {[%emt 0:18:24]} dxe5 {[%emt 0:00:01]} 18. Bf2 {[%emt 0:01:56]} b5 {[%emt 0:09:41]} 19. Nd5 {[%emt 0:10:41]} Nxd5 {[%emt 0:04:06]} 20. cxd5 {[%emt 0:02:39]} Bd7 {[%emt 0:00:57]} 21. Qd2 {[%emt 0:04:04]} Bc5 {[%emt 0:03:46]} 22. Rac1 {[%emt 0:10:20]} Qb6 {[%emt 0:02:12]} 23. Rxc5 {[%emt 0:02:34]} Rxc5 {[%emt 0:00:10]} 24. d6 {[%emt 0:01:31]} b4 {[%emt 0:13:55]} 25. Bxc5 {[%emt 0:00:08]} Qxc5 {[%emt 0:00:07]} 26. h3 {[%emt 0:02:12]} a5 {[%emt 0:01:05]} 27. Rc1 {[%emt 0:06:19]} Qb6 {[%emt 0:00:28]} 28. Rc7 {[%emt 0:03:39]} Be6 {[%emt 0:06:05]} 29. Kh2 {[%emt 0:02:15]} h6 {[%emt 0:01:35]} 30. Bxe6 {[%emt 0:05:35]} fxe6 {[%emt 0:00:02]} 31. Qd1 {[%emt 0:00:06]} Qf2 {[%emt 0:05:02]} 32. Qg4 {[%emt 0:00:56]} Qf6 {[%emt 0:00:09]} 33. Re7 {[%emt 0:00:42]} Rf7 {[%emt 0:01:41]} 34. Re8+ {[%emt 0:01:44]} Kh7 {[%emt 0:01:14]} 35. Rxe6 {[%emt 0:00:06]} Qf4+ {[%emt 0:00:22]} 36. Qxf4 {[%emt 0:00:18]} exf4 {[%emt 0:00:02]} 37. e5 {[%emt 0:00:31]} f3 {[%emt 0:00:01]} 38. gxf3 {[%emt 0:00:06]} Rxf3 {[%emt 0:00:03]} 39. d7 {[%emt 0:00:12]} Rd3 {[%emt 0:00:10]} 40. Rd6 {[%emt 0:00:06]} 1-0

[Event "Leca Open 2022"]
[Site "Leca da Palmeira"]
[Date "2022.08.01"]
[Round "3.6"]
[White "Mahitosh Dey"]
[Black "Abdisalimov, Abdimalik"]
[Result "0-1"]
[ECO "A46"]
[WhiteElo "2212"]
[BlackElo "2437"]
[Annotator "RC"]
[PlyCount "114"]
[EventDate "2022.08.02"]
[EventType "swiss"]
[EventCountry "POR"]
[SourceTitle "playchess.com"]
[Source "ChessBase"]
[SourceQuality "1"]
[TimeControl "5400+30"]

1. d4 Nf6 2. Nf3 e6 3. Bf4 d5 4. e3 c5 5. c3 Nc6 6. Nbd2 cxd4 7. cxd4 Nh5 8. Bg5 Qb6 9. Qb3 h6 10. Bh4 g5 11. Bg3 g4 12. Ne5 Nxg3 13. hxg3 Qxb3 14. Nxb3 Nxe5 15. dxe5 Rg8 16. Rh5 Bd7 17. Be2 Rc8 18. Rc1 Rc6 19. Rh4 Rxc1+ 20. Nxc1 Rg5 21. Rxg4 Rxe5 22. Rh4 Bg7 23. Nd3 Re4 24. b3 Rxh4 25. gxh4 e5 26. f3 f5 27. g4 fxg4 28. fxg4 Ke7 29. Kf2 Kd6 30. Kg3 Bf6 31. Nf2 e4 32. Nh3 Bc3 33. g5 hxg5 34. hxg5 Be1+ 35. Nf2 Be6 36. Kg2 Bd2 37. Nd1 Ke5 38. g6 Kf6 39. Kg3 Be1+ 40. Kf4 Ba5 41. Kg3 Kxg6 42. Bg4 Be1+ 43. Kf4 Kf6 44. Bxe6 Kxe6 45. Nb2 b5 46. a4 a6 47. Nd1 Bd2 48. Kg3 Ke5 49. Kf2 d4 50. exd4+ Kxd4 51. Ke2 e3 52. Nb2 Kc3 53. Nd3 Kxb3 54. Nc5+ Kc4 55. Ne4 b4 56. Nd6+ Kc3 57. Ne4+ Kc2 0-1

[Event "Leca Open 2022"]
[Site "Leca da Palmeira"]
[Date "2022.08.01"]
[Round "3.7"]
[White "Nigmatov, Ortik"]
[Black "Akshit Kumar J"]
[Result "1-0"]
[ECO "C42"]
[WhiteElo "2437"]
[BlackElo "2103"]
[Annotator "RC"]
[PlyCount "43"]
[EventDate "2022.08.02"]
[EventType "swiss"]
[EventCountry "POR"]
[SourceTitle "playchess.com"]
[Source "ChessBase"]
[SourceQuality "1"]
[TimeControl "5400+30"]

1. e4 e5 2. Nf3 Nf6 3. Nxe5 d6 4. Nc4 Nxe4 5. Qe2 Qe7 6. Ne3 c6 7. b3 Qe5 8. c3 d5 9. Bb2 Be6 10. g3 Nd7 11. Bg2 Qc7 12. f4 f5 13. d3 Nec5 14. Nxf5 O-O-O 15. Nd4 Re8 16. O-O Bf7 17. Qd1 Re3 18. b4 Qb6 19. Bc1 Rxd3 20. bxc5 Nxc5 21. Qc2 Be7 22. Qf2 1-0

[Event "Leca Open 2022"]
[Site "Leca da Palmeira"]
[Date "2022.08.01"]
[Round "3.8"]
[White "Balje, Jan"]
[Black "Krishna C R G"]
[Result "0-1"]
[ECO "A89"]
[WhiteElo "2190"]
[BlackElo "2430"]
[Annotator "RC"]
[PlyCount "52"]
[EventDate "2022.08.02"]
[EventType "swiss"]
[EventCountry "POR"]
[SourceTitle "playchess.com"]
[Source "ChessBase"]
[SourceQuality "1"]
[TimeControl "5400+30"]

1. d4 f5 2. g3 Nf6 3. Bg2 g6 4. Nf3 Bg7 5. O-O O-O 6. c4 d6 7. Nc3 Nc6 8. d5 Ne5 9. Nxe5 dxe5 10. Qb3 Kh8 11. c5 h6 12. Rd1 g5 13. Bd2 e4 14. f3 exf3 15. exf3 f4 16. gxf4 gxf4 17. Bxf4 Nh5 18. Bg3 a5 19. d6 exd6 20. cxd6 Nxg3 21. hxg3 cxd6 22. Ne4 a4 23. Qe3 d5 24. a3 d4 25. Qd2 Ra6 26. Rac1 Rg6 0-1

[Event "Leca Open 2022"]
[Site "Leca da Palmeira"]
[Date "2022.08.01"]
[Round "3.9"]
[White "Akhvlediani, Irakli"]
[Black "Goncalves, Samuel Jesus P"]
[Result "1-0"]
[ECO "D12"]
[WhiteElo "2429"]
[BlackElo "1957"]
[Annotator "RC"]
[PlyCount "105"]
[EventDate "2022.08.02"]
[EventType "swiss"]
[EventCountry "POR"]
[SourceTitle "playchess.com"]
[Source "ChessBase"]
[SourceQuality "1"]
[TimeControl "5400+30"]

1. d4 {[%emt 0:00:03]} d5 {[%emt 0:02:38]} 2. c4 {[%emt 0:00:07]} c6 {[%emt 0:00:06]} 3. Nf3 {[%emt 0:00:22]} Nf6 {[%emt 0:00:06]} 4. e3 {[%emt 0:00:18]} Bf5 {[%emt 0:00:06]} 5. Nc3 {[%emt 0:00:05]} e6 {[%emt 0:00:05]} 6. Nh4 {[%emt 0:00:07]} Be4 {[%emt 0:00:06]} 7. f3 {[%emt 0:00:04]} Bg6 {[%emt 0:00:05]} 8. Bd2 {[%emt 0:00:49]} Be7 {[%emt 0:00:48]} 9. Nxg6 {[%emt 0:00:39]} hxg6 {[%emt 0:00:07]} 10. Qb3 {[%emt 0:00:02]} Qc7 {[%emt 0:00:23]} 11. cxd5 {[%emt 0:03:30]} exd5 {[%emt 0:01:18]} 12. O-O-O {[%emt 0:01:30]} Nbd7 {[%emt 0:02:40]} 13. e4 {[%emt 0:03:44]} dxe4 {[%emt 0:02:54]} 14. fxe4 {[%emt 0:00:16]} Ng4 {[%emt 0:00:41]} 15. Rg1 {[%emt 0:11:24]} Qb6 {[%emt 0:10:35]} 16. Qa4 {[%emt 0:45:50]} Qb4 {[%emt 0:11:58]} 17. Qxb4 {[%emt 0:00:42]} Bxb4 {[%emt 0:00:09]} 18. h3 {[%emt 0:00:07]} Ngf6 {[%emt 0:03:51]} 19. e5 {[%emt 0:10:20]} Bxc3 {[%emt 0:01:16]} 20. bxc3 {[%emt 0:00:18]} Ne4 {[%emt 0:01:08]} 21. Be1 {[%emt 0:00:40]} O-O {[%emt 0:02:37]} 22. h4 {[%emt 0:03:35]} f5 {[%emt 0:03:35]} 23. Bc4+ {[%emt 0:00:38]} Kh7 {[%emt 0:00:30]} 24. Bd3 {[%emt 0:00:04]} Nb6 {[%emt 0:01:22]} 25. g4 {[%emt 0:08:05]} Nd5 {[%emt 0:02:28]} 26. Kb2 {[%emt 0:00:02]} Nf4 {[%emt 0:02:54]} 27. Bc2 {[%emt 0:00:01]} Nd5 {[%emt 0:05:55]} 28. Rb1 {[%emt 0:05:20]} Ne3 {[%emt 0:02:36]} 29. Bd3 {[%emt 0:00:04]} Rad8 {[%emt 0:00:25]} 30. h5 {[%emt 0:00:51]} gxh5 {[%emt 0:00:19]} 31. gxf5 {[%emt 0:01:09]} Nc5 {[%emt 0:00:08]} 32. Be2 {[%emt 0:00:03]} Na4+ {[%emt 0:06:29]} 33. Kb3 {[%emt 0:00:01]} Nb6 {[%emt 0:00:40]} 34. Bh4 {[%emt 0:01:38]} Rd5 {[%emt 0:01:09]} 35. f6 {[%emt 0:00:19]} gxf6 {[%emt 0:02:12]} 36. Bxf6 {[%emt 0:00:01]} Ng4 {[%emt 0:01:01]} 37. Bxg4 {[%emt 0:01:34]} hxg4 {[%emt 0:00:12]} 38. Rxg4 {[%emt 0:01:17]} Rb5+ {[%emt 0:00:06]} 39. Kc2 {[%emt 0:00:03]} Rxb1 {[%emt 0:00:05]} 40. Rg7+ {[%emt 0:00:28]} Kh6 {[%emt 0:01:03]} 41. Kxb1 {[%emt 0:00:02]} Nd5 {[%emt 0:00:35]} 42. Rxb7 {[%emt 0:01:37]} Kg6 {[%emt 0:00:08]} 43. Kb2 {[%emt 0:00:22]} Kf5 {[%emt 0:00:45]} 44. a4 {[%emt 0:02:05]} a5 {[%emt 0:00:33]} 45. Kb3 {[%emt 0:00:19]} Ke4 {[%emt 0:01:10]} 46. Kc4 {[%emt 0:00:27]} Rc8 {[%emt 0:01:24]} 47. Be7 {[%emt 0:00:33]} Nf4 {[%emt 0:02:19]} 48. Ba3 {[%emt 0:00:20]} Nd5 {[%emt 0:00:45]} 49. Bb2 {[%emt 0:01:05]} Kf5 {[%emt 0:01:16]} 50. Kc5 {[%emt 0:00:08]} Ke6 {[%emt 0:00:20]} 51. c4 {[%emt 0:00:13]} Nb4 {[%emt 0:02:10]} 52. Bc3 {[%emt 0:00:05]} Nd3+ {[%emt 0:00:45]} 53. Kb6 {[%emt 0:00:01]} 1-0

[Event "Leca Open 2022"]
[Site "Leca da Palmeira"]
[Date "2022.08.01"]
[Round "3.10"]
[White "Buscara, Sevan"]
[Black "Guia, Artur Solovyov Eloy"]
[Result "1-0"]
[ECO "C55"]
[WhiteElo "2404"]
[BlackElo "1916"]
[Annotator "RC"]
[PlyCount "107"]
[EventDate "2022.08.02"]
[EventType "swiss"]
[EventCountry "POR"]
[SourceTitle "playchess.com"]
[Source "ChessBase"]
[SourceQuality "1"]
[TimeControl "5400+30"]

1. e4 {[%emt 0:05:46]} e5 {[%emt 0:00:12]} 2. Nf3 Nc6 {[%emt 0:00:13]} 3. Bc4 {[%emt 0:00:13]} Nf6 {[%emt 0:00:24]} 4. d3 {[%emt 0:00:20]} Be7 {[%emt 0:00:19]} 5. O-O {[%emt 0:00:13]} d6 {[%emt 0:00:16]} 6. a4 {[%emt 0:00:06]} Na5 {[%emt 0:00:30]} 7. Ba2 {[%emt 0:00:30]} c5 {[%emt 0:00:56]} 8. c3 {[%emt 0:00:00]} Nc6 {[%emt 0:00:52]} 9. Na3 {[%emt 0:00:11]} O-O {[%emt 0:02:24]} 10. Re1 {[%emt 0:03:12]} a6 {[%emt 0:00:08]} 11. Nd2 {[%emt 0:03:01]} Bg4 12. Qc2 {[%emt 0:01:59]} Rb8 {[%emt 0:06:43]} 13. Nf1 {[%emt 0:00:51]} Be6 {[%emt 0:05:59]} 14. Nc4 {[%emt 0:01:19]} b5 {[%emt 0:01:20]} 15. Nce3 {[%emt 0:00:09]} Bxa2 {[%emt 0:00:30]} 16. Rxa2 {[%emt 0:00:30]} Re8 {[%emt 0:00:30]} 17. Nf5 {[%emt 0:00:01]} Bf8 {[%emt 0:10:49]} 18. axb5 {[%emt 0:00:24]} axb5 {[%emt 0:00:10]} 19. Bg5 {[%emt 0:00:31]} h6 {[%emt 0:01:53]} 20. Bxf6 {[%emt 0:00:53]} Qxf6 {[%emt 0:00:03]} 21. Ra6 {[%emt 0:00:27]} Rec8 {[%emt 0:00:07]} 22. N1e3 {[%emt 0:01:06]} g6 {[%emt 0:02:21]} 23. Nd5 {[%emt 0:03:13]} Qd8 {[%emt 0:00:03]} 24. Nfe3 {[%emt 0:01:22]} Ra8 {[%emt 0:05:08]} 25. Rea1 {[%emt 0:00:33]} Rxa6 {[%emt 0:00:38]} 26. Rxa6 {[%emt 0:00:06]} Ne7 {[%emt 0:03:53]} 27. Qb3 {[%emt 0:02:13]} Nxd5 {[%emt 0:03:45]} 28. Nxd5 {[%emt 0:01:07]} Qg5 {[%emt 0:07:41]} 29. Ne3 {[%emt 0:03:07]} Rb8 {[%emt 0:11:36]} 30. Ra7 {[%emt 0:00:44]} Qf6 {[%emt 0:00:30]} 31. Ng4 {[%emt 0:02:42]} Qf4 {[%emt 0:03:09]} 32. g3 {[%emt 0:00:40]} Qf3 {[%emt 0:00:02]} 33. Ne3 {[%emt 0:00:45]} h5 {[%emt 0:03:15]} 34. Qd5 {[%emt 0:00:39]} Qf6 {[%emt 0:00:33]} 35. Qc6 {[%emt 0:01:24]} Qe6 {[%emt 0:08:59]} 36. Nd5 {[%emt 0:00:29]} c4 {[%emt 0:01:07]} 37. dxc4 {[%emt 0:03:53]} bxc4 {[%emt 0:00:28]} 38. Nb6 {[%emt 0:02:26]} h4 {[%emt 0:01:39]} 39. Qc7 {[%emt 0:02:33]} h3 {[%emt 0:08:26]} 40. f3 {[%emt 0:01:56]} Qf6 {[%emt 0:05:11]} 41. Kf2 {[%emt 0:00:22]} Re8 {[%emt 0:02:27]} 42. Nd5 {[%emt 0:01:53]} Qe6 {[%emt 0:01:09]} 43. Qxc4 {[%emt 0:00:07]} Rb8 {[%emt 0:00:45]} 44. b4 {[%emt 0:00:18]} g5 {[%emt 0:02:23]} 45. g4 {[%emt 0:00:23]} Rc8 {[%emt 0:01:06]} 46. Qa2 {[%emt 0:01:37]} Rb8 {[%emt 0:02:24]} 47. Ne7+ {[%emt 0:01:18]} Bxe7 {[%emt 0:00:23]} 48. Qxe6 {[%emt 0:00:06]} fxe6 {[%emt 0:00:01]} 49. Rxe7 {[%emt 0:00:11]} Rc8 {[%emt 0:01:00]} 50. b5 {[%emt 0:00:10]} Rxc3 {[%emt 0:00:13]} 51. b6 {[%emt 0:00:04]} Kf8 {[%emt 0:00:40]} 52. Rc7 {[%emt 0:00:12]} Rb3 {[%emt 0:00:39]} 53. b7 {[%emt 0:00:06]} Ke8 {[%emt 0:00:11]} 54. Rc8+ {[%emt 0:00:16]} 1-0

[Event "Leca Open 2022"]
[Site "Leca da Palmeira"]
[Date "2022.08.01"]
[Round "3.11"]
[White "Jansen, Bob"]
[Black "Pierrot, Facundo"]
[Result "0-1"]
[ECO "D00"]
[WhiteElo "2162"]
[BlackElo "2371"]
[Annotator "RC"]
[PlyCount "66"]
[EventDate "2022.08.02"]
[EventType "swiss"]
[EventCountry "POR"]
[SourceTitle "playchess.com"]
[Source "ChessBase"]
[SourceQuality "1"]
[TimeControl "5400+30"]

1. d4 d5 2. Nc3 Nf6 3. Bf4 e6 4. Nb5 Na6 5. e3 Be7 6. Bd3 O-O 7. g4 c6 8. Nc3 Nb4 9. Be2 c5 10. Nf3 cxd4 11. exd4 Ne4 12. Nb1 Bd6 13. Bxd6 Qxd6 14. c3 Nc6 15. Qd3 f5 16. gxf5 exf5 17. Nfd2 f4 18. f3 Nxd2 19. Qxd2 Bf5 20. Na3 Rae8 21. O-O-O Nxd4 22. Bc4 dxc4 23. Qxd4 Qxd4 24. Rxd4 Bh3 25. Nxc4 Bg2 26. Rg1 Bxf3 27. Rf1 Bh5 28. Nd6 Re2 29. Nxb7 f3 30. Nc5 f2 31. Nd3 Bg6 32. h4 h6 33. c4 Rf3 0-1